bitfinex/quotes_SOLUSD_20240902
["timestamp","ask_amount","ask_price","bid_price","bid_amount"]
[1725264745157,8.6312382,128.91,128.84,7.7609]
[1725264745360,7.758,128.9,128.85,7.7609]
[1725264745896,7.758,128.9,128.84,7.7615]
[1725264746058,42.69479811,128.91,128.83,19.4047]
[1725264746388,7.7591,128.89,128.82,7.7627]
[1725264746593,20.0,128.9,128.82,7.7627]
[1725264746762,7.7594,128.88,128.83,7.762]
[1725264747093,20.0,128.9,128.82,19.4067]
[1725264747094,7.7599,128.87,128.82,19.4067]
[1725264747291,41.82105991,128.89,128.79,19.4113]
[1725264747292,7.761,128.85,128.79,19.4113]
[1725264747466,7.7609,128.86,128.79,19.4113]
[1725264747985,20.0,128.9,128.81,7.7631]
[1725264748296,7.7594,128.88,128.83,7.7621]
[1725264748479,61.82105991,128.9,128.81,19.407]
[1725264748674,7.7598,128.87,128.82,7.7627]
[1725264749187,7.7605,128.86,128.81,27.1703]
[1725264749397,7.7612,128.85,128.79,7.764]
[1725264750166,41.82105991,128.88,128.78,43.3964]
[1725264750370,65.0,128.87,128.78,43.3964]
[1725264750794,41.82105991,128.86,128.78,19.4127]
[1725264750977,7.7629,128.82,128.78,19.4127]
[1725264751189,7.7629,128.82,128.76,7.7663]
[1725264752068,41.82105991,128.86,128.75,19.4174]
[1725264752394,7.7616,128.84,128.79,7.7645]
[1725264752769,7.7616,128.84,128.78,7.7651]
[1725264752970,7.7626,128.83,128.77,19.413]
[1725264753173,7.7629,128.82,128.77,27.1785]
[1725264753470,19.3977,128.89,128.79,19.4101]
[1725264753692,7.7609,128.86,128.8,7.7634]
[1725264754196,7.7639,128.81,128.76,19.4159]
[1725264754398,42.65659729,128.89,128.73,42.2582]
[1725264754399,41.82105991,128.82,128.73,42.2582]
[1725264754606,6.19,128.84,128.73,19.4202]
[1725264754607,41.82105991,128.8,128.73,19.4202]
[1725264754819,41.82105991,128.8,128.7,19.4247]
[1725264755013,7.767,128.75,128.7,27.1941]
[1725264755217,41.82105991,128.78,128.68,7.7711]
[1725264755400,7.7676,128.74,128.68,7.7711]
[1725264755909,41.82105991,128.74,128.67,19.4292]
[1725264756097,41.82105991,128.74,128.65,14.3366]
[1725264756284,41.82105991,128.72,128.63,43.4994]
[1725264756486,7.7706,128.69,128.63,43.4994]
[1725264757215,7.7726,128.66,128.63,16.2915]
[1725264757408,7.7718,128.67,128.61,7.7753]
[1725264757722,7.7712,128.68,128.62,7.7747]
[1725264758216,41.82105991,128.7,128.61,19.4384]
[1725264758217,7.7718,128.67,128.61,19.4384]
[1725264758398,45.0,128.73,128.61,19.4384]
[1725264758399,7.7698,128.71,128.61,19.4384]
[1725264758916,86.82105991,128.73,128.61,19.4384]
[1725264758917,7.77,128.7,128.64,7.7735]
[1725264759986,7.7707,128.69,128.63,7.7742]
[1725264760814,7.7712,128.68,128.63,7.7742]
[1725264761191,41.82105991,128.71,128.63,7.7742]
[1725264761192,7.7706,128.69,128.63,7.7742]
[1725264761612,278.5171,128.76,128.63,38.8711]
[1725264761613,300.92105991,128.76,128.63,38.8711]
[1725264761808,41.82105991,128.78,128.67,19.4294]
[1725264762422,7.7669,128.75,128.69,7.77]
[1725264762634,7.7664,128.76,128.69,19.425]
[1725264762926,7.767,128.75,128.69,27.1955]
[1725264763091,45.6827572,128.78,128.66,6.1687]
[1725264763092,3.86169729,128.78,128.72,19.4217]
[1725264763288,0.1935818,128.8,128.72,19.4217]
[1725264763289,4.05527909,128.8,128.72,19.4217]
[1725264763818,7.7651,128.79,128.72,27.1901]
[1725264764091,7.7651,128.79,128.73,7.7681]
[1725264764092,7.7646,128.79,128.73,7.7681]
[1725264765018,7.7653,128.78,128.73,7.7681]
[1725264766002,7.7653,128.78,128.72,27.1904]
[1725264766528,7.7658,128.77,128.72,7.7686]
[1725264767017,7.7664,128.76,128.69,19.4265]
[1725264767400,7.767,128.75,128.7,7.7699]
[1725264767605,7.7677,128.74,128.69,19.4265]
[1725264767803,41.82105991,128.79,128.69,27.197]
[1725264768120,7.7669,128.76,128.7,7.7697]
[1725264768323,7.7669,128.76,128.71,7.7693]
[1725264768522,0.1935818,128.8,128.68,15.2467]
[1725264768736,0.1935818,128.8,128.74,7.7674]
[1725264769419,7.9575818,128.8,128.74,7.7674]
[1725264769641,7.9575818,128.8,128.75,7.7667]
[1725264770499,7.9575818,128.8,128.74,7.7675]
[1725264770700,7.7648,128.79,128.74,7.7675]
[1725264771628,41.82105991,128.79,128.73,19.4193]
[1725264773398,7.7657,128.77,128.73,19.4193]
[1725264775039,7.7652,128.78,128.73,27.1874]
[1725264775326,0.1935818,128.8,128.75,7.7664]
[1725264775327,7.9577818,128.8,128.75,7.7664]
[1725264775935,7.9577818,128.8,128.74,7.7674]
[1725264776120,7.7657,128.77,128.73,19.4193]
[1725264776320,45.0,128.79,128.71,7.7693]
[1725264776321,7.7664,128.76,128.71,7.7693]
[1725264776629,7.7659,128.77,128.72,7.7687]
[1725264777624,7.7664,128.76,128.71,7.7692]
[1725264778101,7.7658,128.77,128.72,7.7684]
[1725264778300,7.7665,128.76,128.71,7.7692]
[1725264779614,7.7658,128.77,128.72,7.7686]
[1725264780007,86.82105991,128.79,128.72,7.7686]
[1725264781131,7.7662,128.77,128.72,7.7686]
[1725264781301,41.82105991,128.77,128.71,7.7692]
[1725264781504,41.82105991,128.74,128.67,19.4294]
[1725264781727,45.0,128.73,128.67,19.4294]
[1725264781914,7.7698,128.71,128.66,7.7721]
[1725264782527,7.7701,128.7,128.65,7.7729]
[1725264783211,7.7706,128.69,128.64,27.2071]
[1725264783925,7.7712,128.68,128.62,14.1714]
[1725264784328,41.82105991,128.7,128.62,7.7743]
[1725264784329,7.7718,128.67,128.62,7.7743]
[1725264785528,7.7725,128.66,128.61,27.2131]
[1725264785732,41.82105991,128.68,128.61,19.438]
[1725264786322,7.7725,128.66,128.61,27.2133]
[1725264787123,41.82105991,128.68,128.59,21.1442]
[1725264787124,61.24905991,128.68,128.59,21.1442]
[1725264787327,45.0,128.67,128.59,21.1442]
[1725264787518,65.0,128.67,128.59,21.1442]
[1725264788139,41.82105991,128.68,128.6,19.4391]
[1725264788460,7.7723,128.67,128.62,7.7748]
[1725264789539,7.7712,128.68,128.63,7.7741]
[1725264789734,7.7703,128.7,128.59,21.1442]
[1725264790039,7.7703,128.7,128.6,45.0]
[1725264791041,7.7706,128.69,128.64,19.4331]
[1725264791347,7.7706,128.69,128.64,27.2062]
[1725264791638,7.7706,128.69,128.64,27.2065]
[1725264791815,41.82105991,128.7,128.64,27.2065]
[1725264791816,41.82105991,128.7,128.64,19.4331]
[1725264792006,7.7719,128.67,128.62,7.7747]
[1725264792207,41.82105991,128.73,128.67,7.7716]
[1725264792943,41.82105991,128.73,128.66,7.7723]
[1725264792944,7.7694,128.71,128.66,7.7723]
[1725264793145,49.59045991,128.71,128.66,7.7723]
[1725264793325,7.7709,128.69,128.65,19.4314]
[1725264793532,41.82105991,128.71,128.65,19.4314]
[1725264793832,45.0,128.7,128.65,19.4314]
[1725264794033,7.7707,128.69,128.65,19.4314]
[1725264794645,41.82105991,128.71,128.65,27.2043]
[1725264794847,41.82105991,128.71,128.66,7.7723]
[1725264795145,41.82105991,128.71,128.65,19.4314]
[1725264795146,45.6827572,128.73,128.67,7.7717]
[1725264795316,7.7688,128.72,128.67,7.7717]
[1725264795643,7.7688,128.72,128.68,7.7711]
[1725264796018,7.7688,128.72,128.67,7.7716]
[1725264796315,6.1441,128.74,128.66,7.7722]
[1725264796316,49.59055991,128.71,128.66,7.7722]
[1725264796528,7.7695,128.71,128.66,7.7722]
[1725264797119,49.59055991,128.71,128.66,7.7722]
[1725264797752,45.0,128.7,128.64,7.7735]
[1725264798642,7.7712,128.68,128.63,7.7742]
[1725264799437,7.7718,128.67,128.62,27.2111]
[1725264799829,49.59285991,128.67,128.62,27.2111]
[1725264800021,7.7718,128.67,128.62,27.2111]
[1725264800449,7.7718,128.67,128.62,19.4364]
[1725264800450,7.7726,128.66,128.62,19.4364]
[1725264800631,41.82105991,128.67,128.6,7.7755]
[1725264800955,7.7736,128.64,128.59,40.5852]
[1725264801128,41.82105991,128.67,128.6,7.776]
[1725264801129,7.7731,128.65,128.6,7.776]
[1725264801947,49.59315991,128.67,128.63,7.7741]
[1725264802120,45.0,128.66,128.62,27.2116]
[1725264802321,52.7725,128.66,128.62,19.4369]
[1725264803247,7.7737,128.64,128.59,28.9207]
[1725264803749,7.7744,128.63,128.59,21.1442]
[1725264804128,7.7744,128.63,128.59,15.0976]
[1725264805133,7.7748,128.62,128.58,19.4418]
[1725264806045,7.7748,128.62,128.58,27.2189]
[1725264806430,7.7748,128.62,128.58,19.4418]
[1725264806949,7.7743,128.63,128.58,27.2189]
[1725264809037,49.59535991,128.63,128.58,27.2189]
[1725264809451,49.59225991,128.68,128.63,7.7741]
[1725264809638,41.82105991,128.68,128.58,38.8858]
[1725264809836,7.7714,128.68,128.63,7.7737]
[1725264810463,11.63159729,128.71,128.64,19.4328]
[1725264810637,11.63159729,128.71,128.65,7.7729]
[1725264810638,7.77,128.7,128.65,7.7729]
[1725264812748,49.59105991,128.7,128.65,7.7729]
[1725264813136,45.0,128.69,128.65,7.7729]
[1725264813343,49.59105991,128.7,128.65,7.7729]
[1725264815753,41.82105991,128.7,128.66,7.7723]
[1725264820674,3.86169729,128.74,128.69,7.7705]
[1725264820675,7.7677,128.74,128.69,7.7705]
[1725264821183,7.7672,128.75,128.7,27.1937]
[1725264821589,20.86890636,128.78,128.72,19.4205]
[1725264821865,20.86890636,128.78,128.71,22.9757]
[1725264821866,3.86169729,128.83,128.79,27.1759]
[1725264824193,49.58285991,128.84,128.79,27.1759]
[1725264825690,49.58285991,128.84,128.79,19.4114]
[1725264826068,41.82105991,128.81,128.75,19.4172]
[1725264826269,3.4064164,128.85,128.75,19.4172]
[1725264826270,41.82105991,128.83,128.75,19.4172]
[1725264826480,49.58375991,128.83,128.75,19.4172]
[1725264827276,49.58375991,128.83,128.78,7.7651]
[1725264827676,49.58375991,128.83,128.79,7.7645]
[1725264827677,41.82105991,128.83,128.79,7.7645]
[1725264827879,41.82105991,128.83,128.77,19.4129]
[1725264828196,41.82105991,128.83,128.78,7.765]
[1725264828197,49.58365991,128.83,128.78,7.765]
[1725264828398,20.86890636,128.87,128.78,7.765]
[1725264828399,62.68996627,128.87,128.79,6.336]
[1725264828694,41.82105991,128.89,128.79,14.1005]
[1725264828907,20.86890636,128.91,128.85,19.4021]
[1725264829087,41.82105991,128.92,128.85,19.4021]
[1725264829403,41.82105991,128.91,128.86,7.7597]
[1725264829604,60.12672991,128.93,128.86,7.7597]
[1725264829770,7.7567,128.92,128.87,7.7595]
[1725264830393,7.7574,128.91,128.86,7.7602]
[1725264830772,7.7568,128.92,128.86,7.7602]
[1725264831193,7.7568,128.92,128.87,7.7594]
[1725264832069,7.7568,128.92,128.86,7.7602]
[1725264832273,41.82105991,128.91,128.86,7.7602]
[1725264832677,49.57835991,128.91,128.86,7.7602]
[1725264833195,49.57835991,128.91,128.85,19.4021]
[1725264833196,7.7584,128.9,128.85,19.4021]
[1725264833595,7.7574,128.91,128.85,27.1624]
[1725264834496,42.64912371,128.93,128.9,7.7573]
[1725264834797,0.8280638,128.93,128.89,27.153]
[1725264835002,0.8280638,128.93,128.89,19.395]
[1725264835499,0.8280638,128.93,128.91,7.7572]
[1725264835801,0.8280638,128.93,128.89,19.395]
[1725264836184,0.8280638,128.93,128.91,27.1493]
[1725264837194,0.8280638,128.93,128.92,7.7567]
[1725264837394,0.8280638,128.93,128.91,19.392]
[1725264837891,0.8280638,128.93,128.92,7.7567]
[1725264838091,0.8280638,128.93,128.91,27.149]
[1725264838295,0.8280638,128.93,128.91,19.392]
[1725264839388,0.8280638,128.93,128.92,7.7567]
[1725264839778,0.8280638,128.93,128.91,27.1492]
[1725264840703,0.8280638,128.93,128.86,60.7389]
[1725264840870,0.8280638,128.93,128.92,30.4166]
[1725264841201,7.7507,129.02,128.96,7.7538]
[1725264841381,41.82105991,129.04,128.93,1.54597738]
[1725264841591,41.82105991,129.04,128.93,21.54597738]
[1725264842090,7.7524,129.0,128.94,7.7549]
[1725264842609,7.7524,129.0,128.94,27.1435]
[1725264842985,7.7525,128.99,128.94,27.1435]
[1725264843306,26.2277638,129.05,128.93,7.7559]
[1725264843307,7.7537,128.98,128.93,7.7559]
[1725264843487,41.82105991,129.0,128.93,7.7559]
[1725264844001,41.82105991,129.0,128.94,7.7549]
[1725264844175,41.82105991,129.0,128.95,7.7548]
[1725264844176,7.752,129.0,128.95,7.7548]
[1725264844378,6.8553638,129.05,128.93,19.389]
[1725264844379,7.7514,129.01,128.96,7.7543]
[1725264844595,7.7507,129.02,128.97,7.7534]
[1725264844818,7.7501,129.04,128.98,7.753]
[1725264845121,7.7503,129.03,128.98,7.753]
[1725264845500,41.82105991,129.04,128.97,19.383]
[1725264845824,41.82105991,129.02,128.97,19.383]
[1725264846195,41.82105991,129.04,128.97,19.383]
[1725264846394,0.8280638,129.05,128.97,19.383]
[1725264846604,7.7502,129.03,128.98,7.7526]
[1725264846802,0.8280638,129.05,128.99,19.3803]
[1725264847011,8.5771638,129.05,129.0,7.7518]
[1725264847211,0.8280638,129.05,129.01,7.7512]
[1725264847531,8.5769638,129.05,129.0,7.7519]
[1725264847829,0.8280638,129.05,129.01,7.7507]
[1725264848122,0.8280638,129.05,128.98,7.7525]
[1725264848419,8.5771638,129.05,129.0,7.7517]
[1725264849000,0.8280638,129.05,129.0,7.7517]
[1725264849428,0.8280638,129.05,129.01,7.7512]
[1725264849927,8.5770638,129.05,129.0,19.3786]
[1725264850117,8.5770638,129.05,129.04,23.9802]
[1725264850118,0.8280638,129.05,129.04,23.9802]
[1725264850906,7.7441,129.13,129.05,19.3714]
[1725264851201,7.7419,129.17,129.06,16.2307]
[1725264851404,0.8280638,129.18,129.07,65.12549]
[1725264851602,0.8280638,129.18,129.12,19.3617]
[1725264852130,7.7429,129.15,129.09,7.7464]
[1725264852328,8.5696638,129.18,129.11,7.7452]
[1725264852499,8.5696638,129.18,129.11,19.3628]
[1725264852707,0.8280638,129.18,129.11,19.3628]
[1725264852901,0.8280638,129.18,129.12,7.7441]
[1725264853395,0.8280638,129.18,129.14,7.7434]
[1725264853698,0.8280638,129.18,129.14,19.3584]
[1725264854528,8.5694638,129.18,129.12,7.7446]
[1725264854727,42.64912371,129.18,129.1,19.3641]
[1725264855030,0.8280638,129.18,129.1,19.3641]
[1725264855204,0.8280638,129.18,129.13,19.36]
[1725264855616,0.8280638,129.18,129.13,27.1035]
[1725264855924,0.8280638,129.18,129.16,19.3556]
[1725264857026,0.8280638,129.18,129.17,7.7417]
[1725264857326,0.8280638,129.18,129.16,19.3556]
[1725264857632,0.8280638,129.18,129.16,27.0978]
[1725264857928,0.8280638,129.18,129.17,7.7417]
[1725264859520,0.8280638,129.18,129.16,19.3556]
[1725264862006,0.8280638,129.18,129.12,19.3604]
[1725264862203,0.8280638,129.18,129.13,7.7435]
[1725264862608,0.8280638,129.18,129.12,19.3604]
[1725264862821,0.8280638,129.18,129.08,6.5192]
[1725264862822,41.82105991,129.16,129.08,25.886]
[1725264863026,7.7435,129.14,129.08,27.1133]
[1725264863407,7.7429,129.15,129.09,7.7463]
[1725264863608,86.82105991,129.14,129.06,16.5525]
[1725264863834,41.82105991,129.12,129.05,7.7483]
[1725264864035,86.82105991,129.14,129.05,7.7483]
[1725264864408,7.7461,129.1,129.04,25.7477]
[1725264864609,19.357,129.16,129.1,7.7458]
[1725264864610,41.82105991,129.16,129.1,7.7458]
[1725264864824,41.82105991,129.16,129.04,6.3751]
[1725264865032,0.8280638,129.18,129.09,15.1719]
[1725264865426,0.8280638,129.18,129.13,7.7441]
[1725264867345,0.8280638,129.18,129.14,7.7434]
[1725264867846,0.8280638,129.18,129.15,25.7599]
[1725264868024,0.8280638,129.18,129.15,33.5023]
[1725264868228,0.8280638,129.18,129.17,7.7417]
[1725264871252,0.8280638,129.18,129.17,69.195]
[1725264871848,7.7352,129.28,129.22,7.7386]
[1725264872051,7.7352,129.28,129.21,19.3482]
[1725264872052,7.7359,129.27,129.21,27.0874]
[1725264873042,7.7365,129.26,129.21,27.0874]
[1725264873248,41.82105991,129.3,129.21,19.3482]
[1725264873568,23.19369729,129.32,129.18,38.7035]
[1725264873569,46.5366516,129.32,129.18,38.7035]
[1725264873847,8.5868944,129.32,129.22,45.0]
[1725264874053,8.5868944,129.32,129.26,27.0769]
[1725264874220,0.8538944,129.32,129.29,7.7342]
[1725264874553,0.8538944,129.32,129.31,7.7333]
[1725264876663,0.8538944,129.32,129.31,14.0977]
[1725264876865,41.82105991,129.42,129.33,19.3302]
[1725264877239,7.728,129.4,129.34,7.7315]
[1725264877750,41.82105991,129.44,129.33,19.3302]
[1725264879059,7.7285,129.4,129.33,27.0623]
[1725264879264,7.7292,129.38,129.33,27.0622]
[1725264879454,0.8736684,129.46,129.32,16.5466]
[1725264879763,0.8736684,129.46,129.41,7.7273]
[1725264879937,0.8736684,129.46,129.41,19.3181]
[1725264880334,0.8736684,129.46,129.43,7.7261]
[1725264880539,0.8736684,129.46,129.45,7.7249]
[1725264882357,0.8736684,129.46,129.43,16.5466]
[1725264882358,0.8736684,129.46,129.42,7.7263]
[1725264882965,0.8736684,129.46,129.45,7.7249]
[1725264884567,0.8736684,129.46,129.45,52.7249]
[1725264885061,35.8849,129.6,129.5,7.722]
[1725264885273,7.7178,129.57,129.48,19.3069]
[1725264885569,0.8736684,129.59,129.53,7.7201]
[1725264885775,7.7183,129.57,129.5,7.7219]
[1725264885950,7.2183,129.57,129.51,7.7213]
[1725264886570,7.7173,129.58,129.52,7.7206]
[1725264887583,0.8736684,129.59,129.53,19.3002]
[1725264888617,41.82105991,129.55,129.47,15.1661]
[1725264888755,7.7228,129.49,129.43,7.7256]
[1725264888953,7.7239,129.47,129.42,15.4529]
[1725264889164,7.7244,129.46,129.41,19.3176]
[1725264889362,7.725,129.45,129.39,7.728]
[1725264889568,19.3025,129.52,129.43,7.726]
[1725264889781,19.3025,129.52,129.44,1.54469969]
[1725264889984,7.7226,129.49,129.44,1.54469969]
[1725264890174,19.3025,129.52,129.42,7.7267]
[1725264890485,19.3025,129.52,129.43,7.7261]
[1725264891176,41.82105991,129.51,129.41,27.045]
[1725264891680,41.82105991,129.51,129.37,54.1007]
[1725264891681,7.7256,129.44,129.37,34.7759]
[1725264891861,7.7274,129.41,129.37,19.323]
[1725264892188,7.7292,129.38,129.33,19.3293]
[1725264892589,7.7302,129.37,129.3,6.5039]
[1725264892794,7.7302,129.37,129.31,7.7327]
[1725264893580,41.82105991,129.4,129.28,19.3364]
[1725264893581,7.7304,129.36,129.28,19.3364]
[1725264894073,7.7304,129.36,129.29,7.7345]
[1725264894074,7.7308,129.36,129.29,7.7345]
[1725264894588,41.82105991,129.4,129.31,7.7331]
[1725264894768,41.82105991,129.38,129.29,7.734]
[1725264895194,7.7321,129.33,129.28,19.3364]
[1725264895560,30.0,129.35,129.25,6.0131]
[1725264895766,7.7331,129.32,129.25,13.75]
[1725264895995,30.0,129.35,129.24,19.3427]
[1725264896167,30.0,129.3,129.24,19.3427]
[1725264896668,13.3334,129.3,129.29,36.1245]
[1725264896905,57.923,129.49,129.39,19.3211]
[1725264896906,19.3079,129.49,129.39,19.3211]
[1725264897195,6.3256,129.5,129.39,19.3211]
[1725264897196,48.14665991,129.5,129.39,19.3211]
[1725264897873,7.7244,129.46,129.39,19.3211]
[1725264898082,48.14665991,129.5,129.39,19.3211]
[1725264898475,6.3256,129.5,129.39,19.3211]
[1725264898677,7.7238,129.47,129.39,19.3211]
[1725264898872,7.7246,129.46,129.39,27.0494]
[1725264899086,7.7252,129.45,129.39,27.0494]
[1725264899287,7.7256,129.44,129.39,19.3211]
[1725264900090,7.7262,129.43,129.35,57.9803]
[1725264900287,7.7262,129.43,129.37,7.7297]
[1725264900691,7.7248,129.46,129.39,7.7285]
[1725264900894,7.7248,129.46,129.33,38.6607]
[1725264900895,57.98865991,129.52,129.41,19.3181]
[1725264901130,7.7219,129.51,129.33,43.6607]
[1725264901270,7.722,129.5,129.44,19.3131]
[1725264901477,7.7226,129.49,129.44,19.3131]
[1725264901703,41.82105991,129.54,129.44,19.3131]
[1725264902072,7.722,129.5,129.44,19.3131]
[1725264902266,41.82105991,129.49,129.4,25.5498]
[1725264902492,7.7239,129.47,129.41,7.7273]
[1725264902708,7.7239,129.47,129.4,19.3188]
[1725264902709,7.7251,129.45,129.4,19.3188]
[1725264903219,7.7251,129.45,129.4,27.0467]
[1725264903377,7.7251,129.45,129.4,19.3188]
[1725264904007,41.82105991,129.47,129.3,6.4683]
[1725264904215,41.82105991,129.45,129.36,7.7303]
[1725264904584,7.7273,129.41,129.35,19.3269]
[1725264904788,41.82105991,129.43,129.35,19.3269]
[1725264904992,41.82105991,129.43,129.33,7.7319]
[1725264904993,7.7285,129.39,129.33,7.7319]
[1725264905177,7.7281,129.4,129.34,7.7314]
[1725264905381,25.8087,129.46,129.33,7.7319]
[1725264905382,7.7287,129.39,129.33,7.7319]
[1725264905718,41.82105991,129.37,129.27,19.3384]
[1725264905878,19.3207,129.4,129.31,7.7333]
[1725264906078,7.7298,129.37,129.31,7.7333]
[1725264906294,7.7291,129.39,129.32,7.7327]
[1725264906512,41.82105991,129.41,129.32,7.7327]
[1725264906804,19.3152,129.44,129.31,7.733]
[1725264906805,7.7298,129.37,129.31,7.733]
[1725264907211,7.7286,129.39,129.33,7.732]
[1725264907374,41.82105991,129.43,129.34,7.7314]
[1725264907375,7.7279,129.41,129.34,7.7314]
[1725264907707,7.7279,129.4,129.34,7.7314]
[1725264908089,7.7279,129.4,129.33,19.3302]
[1725264908090,7.7297,129.37,129.33,19.3302]
[1725264908276,41.82105991,129.4,129.29,27.0692]
[1725264908474,41.82105991,129.4,129.3,7.7338]
[1725264908688,7.7304,129.36,129.31,7.7332]
[1725264909515,7.7316,129.34,129.29,19.3351]
[1725264909682,41.82105991,129.38,129.25,6.2454]
[1725264909683,7.7303,129.36,129.25,6.2454]
[1725264909878,38.6389,129.41,129.27,38.6762]
[1725264909879,41.82105991,129.41,129.27,38.6762]
[1725264910079,20.4035,129.47,129.28,28.39]
[1725264910080,48.31805991,129.46,129.28,28.39]
[1725264910290,6.497,129.46,129.29,39.9252]
[1725264910628,7.7261,129.43,129.37,19.3243]
[1725264910780,7.7285,129.39,129.29,16.5352]
[1725264910980,41.82105991,129.44,129.29,16.5352]
[1725264910981,41.82105991,129.4,129.29,16.5352]
[1725264911888,41.82105991,129.42,129.33,7.732]
[1725264912486,41.82105991,129.39,129.32,7.7327]
[1725264912711,41.82105991,129.39,129.31,19.3318]
[1725264912712,7.7298,129.37,129.31,27.0651]
[1725264912918,41.82105991,129.39,129.29,7.734]
[1725264913213,7.731,129.35,129.3,7.7338]
[1725264913711,7.731,129.35,129.29,7.7345]
[1725264914085,7.7327,129.33,129.27,27.0731]
[1725264914612,7.7328,129.32,129.27,27.0731]
[1725264915688,7.7321,129.33,129.28,7.7349]
[1725264915887,7.7321,129.33,129.27,27.0736]
[1725264917017,7.7321,129.33,129.25,6.2454]
[1725264917018,7.7304,129.36,129.31,7.7332]
[1725264917185,7.7304,129.36,129.3,7.7336]
[1725264917386,47.98565991,129.37,129.31,7.7332]
[1725264917387,7.7297,129.37,129.31,7.7332]
[1725264917588,41.82105991,129.38,129.29,27.0689]
[1725264918009,7.7309,129.35,129.29,27.0689]
[1725264918825,7.7291,129.39,129.33,7.7319]
[1725264919189,7.7297,129.38,129.32,19.3315]
[1725264919397,41.82105991,129.38,129.28,19.3365]
[1725264919603,41.82105991,129.38,129.29,1.1442991]
[1725264919811,41.82105991,129.38,129.3,7.7335]
[1725264920026,41.82105991,129.38,129.28,27.071]
[1725264920205,7.7315,129.35,129.28,19.3365]
[1725264920528,7.7316,129.34,129.29,7.7345]
[1725264921225,7.731,129.35,129.29,7.7345]
[1725264921403,7.7315,129.34,129.29,7.7345]
[1725264921798,41.82105991,129.38,129.31,19.3332]
[1725264922017,7.7309,129.36,129.31,19.3332]
[1725264923673,41.82105991,129.35,129.25,6.2454]
[1725264923802,30.0,129.33,129.25,33.3243]
[1725264924099,30.0,129.33,129.21,25.6793]
[1725264924100,7.735,129.29,129.21,25.6793]
[1725264924300,30.0,129.33,129.21,6.3315]
[1725264924527,38.6504,129.37,129.3,7.7334]
[1725264924528,41.82105991,129.37,129.3,7.7334]
[1725264924695,41.82105991,129.37,129.22,40.23770617]
[1725264924696,7.7308,129.36,129.29,7.7344]
[1725264924901,41.82105991,129.37,129.27,7.7356]
[1725264924902,7.732,129.34,129.27,7.7356]
[1725264925098,41.82105991,129.37,129.3,7.7339]
[1725264925099,7.731,129.35,129.3,7.7339]
[1725264925302,7.7328,129.32,129.27,7.7351]
[1725264925526,41.82105991,129.31,129.23,7.738]
[1725264925697,7.7345,129.29,129.23,27.0829]
[1725264925900,41.82105991,129.29,129.21,6.3315]
[1725264926118,7.7369,129.26,129.21,6.3315]
[1725264926329,7.7369,129.26,129.2,2.440007]
[1725264926733,25.3583,129.31,129.25,7.7368]
[1725264926734,13.7575,129.31,129.25,7.7368]
[1725264926933,6.0238,129.31,129.2,2.440007]
[1725264927230,41.82105991,129.3,129.24,19.3436]
[1725264927438,7.7347,129.29,129.24,19.3436]
[1725264928338,41.82105991,129.3,129.24,19.3436]
[1725264928339,7.7352,129.28,129.24,19.3436]
[1725264928831,41.82105991,129.3,129.2,29.528607]
[1725264929138,7.7367,129.26,129.2,2.440007]
[1725264929314,13.7571,129.31,129.24,7.7369]
[1725264929522,7.7333,129.31,129.23,19.3452]
[1725264929719,41.82105991,129.32,129.24,7.7369]
[1725264929942,6.4488,129.35,129.22,15.7557]
[1725264930244,7.7315,129.35,129.23,6.099]
[1725264930433,7.7304,129.36,129.27,19.3381]
[1725264930954,6.0181,129.39,129.25,38.6836]
[1725264931245,6.0181,129.39,129.34,19.3281]
[1725264931445,49.54885991,129.41,129.35,7.7309]
[1725264931825,7.7282,129.4,129.35,7.7309]
[1725264932159,7.7282,129.4,129.26,45.0]